[Event "44th Chess Olympiad Women 2022"]
[Site "Chennai"]
[Date "2022.07.30"]
[Round "2.55"]
[White "Kannappan, Sigappi"]
[Black "Lam, Pooja"]
[Result "1-0"]
[ECO "B19"]
[WhiteElo "1914"]
[BlackElo "1163"]
[Annotator "TA"]
[PlyCount "79"]
[EventDate "2022.07.29"]
[EventType "team-tourn"]
[EventCountry "IND"]
[SourceTitle "playchess.com"]
[Source "ChessBase"]
[SourceQuality "1"]
[WhiteTeam "Hong Kong"]
[BlackTeam "Guyana"]
[WhiteTeamCountry "HKG"]
[BlackTeamCountry "GUY"]
[TimeControl "40/5400+30:1800+30"]

{[%evp 28,79,43,27,36,35,41,17,18,0,0,0,0,0,0,0,0,0,0,-19,0,-264,-267,-643,-255,-237,-185,-184,-186,-181,-147,-155,-29,-35,10,-62,37,37,37,45,34,39,343,87,520,337,859,845,831,826,1277,1276,2600,2404]} 1. e4 {[%emt 0:00:09]} c6 {[%emt 0:00:13]} 2. d4 {[%emt 0:00:13]} d5 {[%emt 0:00:07]} 3. Nd2 {[%emt 0:00:06][%cal Bb1d2,Bd2e4,Be4g3][%mdl 32]} dxe4 {[%emt 0:00:37]} 4. Nxe4 {[%emt 0:00:02]} Bf5 {[%emt 0:00:20]} 5. Ng3 {[%emt 0:00:10]} Bg6 {[%emt 0:00:10]} 6. Nf3 {[%emt 0:00:24]} Nf6 {[%emt 0:01:10]} 7. h4 {[%emt 0:00:41][%cal Bh2h4,Bh4h5][%mdl 32]} h6 {[%emt 0:01:19]} 8. h5 {[%emt 0:00:11]} Bh7 {[%emt 0:00:15]} 9. Bd3 {[%emt 0:00:09]} Bxd3 {[%emt 0:00:13]} 10. Qxd3 {[%emt 0:00:05]} e6 {[%emt 0:00:44]} 11. Bd2 {[%emt 0:01:59]} Qc7 {[%emt 0:00:56]} 12. Qe2 {[%emt 0:02:43]} Nbd7 {[%emt 0:03:43]} 13. O-O-O {[%emt 0:02:39]} O-O-O {[%emt 0:00:53]} 14. Ne5 {[%emt 0:05:40]} Nxe5 {[%emt 0:04:45]} 15. dxe5 {[%emt 0:00:08]} Nd7 {[%emt 0:01:33] B19: Classical Caro-Kann: 4...Bf5 main line.} 16. Bc3 {[%emt 0:03:28]} Be7 {[%emt 0:05:09]} 17. f4 {[%emt 0:04:17]} Nb6 {[%emt 0:04:13] The position is equal.} 18. Ba5 {[%emt 0:00:51]} Rd5 {[%emt 0:01:40]} 19. Rxd5 {[%emt 0:02:37]} cxd5 {[%emt 0:00:21]} 20. Rd1 {[%emt 0:19:40]} Qc5 {[%emt 0:10:54]} 21. Bxb6 {[%emt 0:06:35]} Qxb6 {[%emt 0:01:10]} 22. Rd3 {[%emt 0:09:24]} Kb8 {[%emt 0:04:40] [#]} 23. Nf1 $146 {[%emt 0:01:07]} ({Predecessor:} 23. Rb3 Qc7 24. Nf1 Rc8 25. Rc3 Qd7 26. Rxc8+ Qxc8 27. Nd2 Qc5 28. Nf3 Qb6 29. g4 {½-½ (41) Milligan,H (1910)-Adams,D (1905) Dubai 1986}) 23... Rc8 {[%emt 0:00:41]} 24. g4 $2 {[%emt 0:02:53][%mdl 8192]} (24. a3 $11) 24... Rc4 $1 $19 {[%emt 0:03:01]} 25. f5 $2 {[%emt 0:04:44]} (25. Nd2 Rxf4 26. Rf3 Qg1+ 27. Rf1 Rxf1+ 28. Nxf1) 25... Qg1 $2 {[%emt 0:07:59]} (25... Re4 26. Qd1 Bg5+ 27. Kb1 Qf2) 26. Rg3 {[%emt 0:03:49]} Re4 {[%emt 0:02:29]} 27. Rxg1 {[%emt 0:02:13]} Rxe2 {[%emt 0:00:19][%mdl 4096] Endgame KRB-KRN} 28. Kd1 {[%emt 0:00:07]} Re4 {[%emt 0:06:58]} 29. Nd2 {[%emt 0:06:28]} Rd4 {[%emt 0:00:00]} (29... Rxe5 $17 30. fxe6 fxe6) 30. c3 {[%emt 0:01:19]} Ra4 {[%emt 0:00:00]} 31. a3 {[%emt 0:00:17]} (31. fxe6 $11 fxe6 32. Nb3) 31... Bg5 {[%emt 0:00:00]} (31... Kc7 $15) 32. Nf3 $14 {[%emt 0:01:44]} Bf4 {[%emt 0:01:18]} 33. f6 {[%emt 0:03:05]} gxf6 {[%emt 0:01:52]} 34. exf6 {[%emt 0:00:05] And now g5 would win.} Be3 {[%emt 0:04:56][%mdl 8192]} (34... Rc4 $1 $14) 35. Rg2 $2 {[%emt 0:05:25]} (35. g5 $1 $18 {[%cal Rg5g6] and the rest is easy. g6! is the strong threat.} Bxg5 36. Nxg5 hxg5 37. Rh1 (37. Rxg5 Rh4 $14)) 35... Rf4 $2 {[%emt 0:02:20][%mdl 8192]} (35... Bf4 $16) 36. Ne5 {[%emt 0:01:58]} Kc7 $2 {[%emt 0:01:17] [#]} (36... Bb6 37. g5 hxg5) 37. g5 $1 $18 {[%emt 0:06:41] White is clearly winning.} hxg5 {[%emt 0:01:01] [#]} 38. Ng4 $1 {[%emt 0:01:19]} Rf1+ {[%emt 0:03:21]} 39. Ke2 {[%emt 0:00:07]} Bf4 {[%emt 0:00:02]} 40. Kxf1 {[%emt 0:01:36] Never resign too early!  Weighted Error Value: White=0.67/Black=0.92} 1-0

[Event "44th Chess Olympiad Women 2022"]
[Site "Chennai"]
[Date "2022.07.30"]
[Round "2.55"]
[White "Li, Joy Ching"]
[Black "Johnson, Nellisha"]
[Result "1-0"]
[ECO "E18"]
[WhiteElo "1386"]
[BlackElo "1093"]
[Annotator "NA RC COMBH"]
[PlyCount "78"]
[EventDate "2022.07.29"]
[EventType "team-tourn"]
[EventCountry "IND"]
[SourceTitle "playchess.com"]
[Source "ChessBase"]
[SourceQuality "1"]
[WhiteTeam "Hong Kong"]
[BlackTeam "Guyana"]
[WhiteTeamCountry "HKG"]
[BlackTeamCountry "GUY"]
[TimeControl "40/5400+30:1800+30"]

1. Nf3 {[%emt 0:00:03]} Nc6 {[%emt 0:00:22]} 2. d4 {[%emt 0:00:06]} d5 {[%emt 0:00:34]} 3. g3 {[%emt 0:00:06]} Nf6 {[%emt 0:01:00]} 4. Bg2 {[%emt 0:00:12]} e6 {[%emt 0:01:50]} 5. O-O {[%emt 0:00:09]} Be7 {[%emt 0:01:15]} 6. c4 {[%emt 0:00:22]} O-O {[%emt 0:03:03]} 7. Nc3 {[%emt 0:01:31]} b6 {[%emt 0:05:03]} 8. Ne5 {[%emt 0:01:52]} Bb7 {[%emt 0:02:44]} 9. Qa4 {[%emt 0:05:39]} Nxe5 {[%emt 0:04:28]} 10. dxe5 {[%emt 0:00:35]} Nd7 {[%emt 0:04:59]} 11. cxd5 {[%emt 0:01:13]} Nc5 {[%emt 0:09:09]} 12. Qc2 {[%emt 0:05:20]} Qd7 {[%emt 0:02:22]} 13. b4 {[%emt 0:02:57]} Na6 {[%emt 0:01:03]} 14. dxe6 {[%emt 0:00:57]} Qc8 {[%emt 0:02:21]} 15. exf7+ {[%emt 0:02:22]} Rxf7 {[%emt 0:00:21]} 16. a3 {[%emt 0:04:00]} Bxg2 {[%emt 0:01:36]} 17. Kxg2 {[%emt 0:00:16]} Qf5 {[%emt 0:04:29]} 18. Qe4 {[%emt 0:02:36]} Qxe4+ {[%emt 0:02:37]} 19. Nxe4 {[%emt 0:00:07]} Rd8 {[%emt 0:03:29]} 20. Bb2 {[%emt 0:00:41]} Nb8 {[%emt 0:01:03]} 21. Rac1 {[%emt 0:01:55]} c6 {[%emt 0:02:04]} 22. Rfd1 {[%emt 0:00:48]} Rff8 {[%emt 0:02:02]} 23. Nd6 {[%emt 0:01:30]} Rd7 {[%emt 0:09:24]} 24. Rd3 {[%emt 0:01:20]} Rfd8 {[%emt 0:03:00]} 25. Nf5 {[%emt 0:02:23]} Kf7 {[%emt 0:02:01]} 26. e6+ {[%emt 0:06:17]} Kxe6 {[%emt 0:01:19]} 27. Nxg7+ {[%emt 0:00:39]} Kf7 {[%emt 0:00:39]} 28. Rf3+ {[%emt 0:01:00]} Kg8 {[%emt 0:01:57]} 29. Ne6 {[%emt 0:01:41]} Rf8 {[%emt 0:01:06]} 30. Nxf8 {[%emt 0:00:44]} Bxf8 {[%emt 0:00:29]} 31. Rc4 {[%emt 0:00:57]} Bg7 {[%emt 0:02:58]} 32. Rg4 {[%emt 0:00:51]} Rf7 {[%emt 0:04:46]} 33. Rxf7 {[%emt 0:00:11]} Kxf7 {[%emt 0:00:34]} 34. Rxg7+ {[%emt 0:00:06]} Ke8 {[%emt 0:00:16]} 35. Rg8+ {[%emt 0:00:07]} Kd7 {[%emt 0:00:22]} 36. Rxb8 {[%emt 0:00:08]} Kc7 {[%emt 0:00:25]} 37. Rh8 {[%emt 0:00:41]} c5 {[%emt 0:00:28]} 38. f4 {[%emt 0:00:30]} Kc6 {[%emt 0:00:47]} 39. f5 {[%emt 0:00:17]} Kd5 {[%emt 0:00:08]} 1-0

[Event "44th Chess Olympiad Women 2022"]
[Site "Chennai"]
[Date "2022.07.30"]
[Round "2.55"]
[White "Callender, Jessica"]
[Black "Leung, Hoi Ting"]
[Result "0-1"]
[ECO "C00"]
[WhiteElo "1295"]
[BlackElo "1277"]
[Annotator "NA COMBH"]
[PlyCount "68"]
[EventDate "2022.07.29"]
[EventType "team-tourn"]
[EventCountry "IND"]
[SourceTitle "playchess.com"]
[Source "ChessBase"]
[SourceQuality "1"]
[WhiteTeam "Guyana"]
[BlackTeam "Hong Kong"]
[WhiteTeamCountry "GUY"]
[BlackTeamCountry "HKG"]
[TimeControl "40/5400+30:1800+30"]

1. e4 {[%emt 0:00:02]} e6 {[%emt 0:00:07]} 2. c4 {[%emt 0:00:51]} Nc6 {[%emt 0:01:57]} 3. d3 {[%emt 0:04:41]} Bc5 {[%emt 0:03:39]} 4. Ne2 {[%emt 0:03:33]} Qf6 {[%emt 0:04:51]} 5. f4 {[%emt 0:03:23]} d6 {[%emt 0:14:18]} 6. Nbc3 {[%emt 0:11:43]} a6 {[%emt 0:04:11]} 7. g3 {[%emt 0:05:28]} Nge7 {[%emt 0:04:13]} 8. Bg2 {[%emt 0:05:52]} h5 {[%emt 0:08:10]} 9. e5 {[%emt 0:13:41]} Qh6 {[%emt 0:08:27]} 10. d4 {[%emt 0:09:50]} Bb4 {[%emt 0:17:53]} 11. O-O {[%emt 0:00:43]} Nf5 {[%emt 0:04:25]} 12. a3 {[%emt 0:01:38]} Ba5 {[%emt 0:03:32]} 13. b4 {[%emt 0:00:25]} Bb6 {[%emt 0:00:38]} 14. c5 {[%emt 0:02:28]} dxc5 {[%emt 0:01:07]} 15. dxc5 {[%emt 0:01:15]} Ba7 {[%emt 0:00:24]} 16. Ne4 {[%emt 0:11:57]} Bd7 {[%emt 0:03:34]} 17. Qc2 {[%emt 0:04:29]} Nce7 {[%emt 0:05:00]} 18. Rd1 {[%emt 0:04:28]} Nd5 {[%emt 0:03:42]} 19. N2c3 {[%emt 0:02:01]} Nde3 {[%emt 0:03:15]} 20. Bxe3 {[%emt 0:00:27]} Nxe3 {[%emt 0:00:21]} 21. Qb3 {[%emt 0:06:22]} Nxd1 {[%emt 0:00:34]} 22. Rxd1 {[%emt 0:00:07]} Bc6 {[%emt 0:00:38]} 23. Kh1 {[%emt 0:01:50]} h4 {[%emt 0:00:56]} 24. gxh4 {[%emt 0:02:38]} Qxh4 {[%emt 0:01:03]} 25. Kg1 {[%emt 0:01:26]} Qxh2+ {[%emt 0:00:15]} 26. Kf2 {[%emt 0:00:25]} Qxf4+ {[%emt 0:00:20]} 27. Bf3 {[%emt 0:00:58]} Rh2+ {[%emt 0:01:17]} 28. Kg1 {[%emt 0:00:16]} Rh6 {[%emt 0:01:54]} 29. Ne2 {[%emt 0:00:26]} Qh2+ {[%emt 0:00:29]} 30. Kf1 {[%emt 0:00:13]} Qxe5 {[%emt 0:01:06]} 31. Qd3 {[%emt 0:01:27]} Bxe4 {[%emt 0:01:56]} 32. Bxe4 {[%emt 0:00:31]} Qf6+ {[%emt 0:00:23]} 33. Kg1 {[%emt 0:00:34]} Qg5+ {[%emt 0:00:56]} 34. Bg2 {[%emt 0:00:36]} Rg6 {[%emt 0:01:02]} 0-1

[Event "44th Chess Olympiad Women 2022"]
[Site "Chennai"]
[Date "2022.07.30"]
[Round "2.55"]
[White "Shariff, Sasha Christina"]
[Black "Deng, Jing Xin Crystal"]
[Result "0-1"]
[ECO "B38"]
[WhiteElo "1183"]
[BlackElo "1914"]
[Annotator "TA"]
[PlyCount "76"]
[EventDate "2022.07.29"]
[EventType "team-tourn"]
[EventCountry "IND"]
[SourceTitle "playchess.com"]
[Source "ChessBase"]
[SourceQuality "1"]
[WhiteTeam "Guyana"]
[BlackTeam "Hong Kong"]
[WhiteTeamCountry "GUY"]
[BlackTeamCountry "HKG"]
[TimeControl "40/5400+30:1800+30"]

{[%evp 17,76,42,44,42,45,42,45,18,18,12,22,0,37,14,70,6,7,13,4,-29,0,0,6,0,26,0,2,0,27,-7,-7,-7,-4,-12,-23,-124,-17,-429,-431,-766,-737,-993,-983,-1108,-1007,-2743,-1516,-1398,-2177,-1858,-1808,-29993,-29990,-29994,-29994,-29994,-29993,-29993,-29992,-29992,-29993]} 1. e4 {[%emt 0:00:02]} c5 {[%emt 0:00:06]} 2. Nf3 {[%emt 0:00:04]} Nc6 {[%emt 0:00:04]} 3. d4 {[%emt 0:00:05]} cxd4 {[%emt 0:00:04]} 4. Nxd4 {[%emt 0:00:29]} g6 {[%emt 0:00:06]} 5. c4 {[%emt 0:00:13]} Bg7 {[%emt 0:00:17]} 6. Be3 {[%emt 0:00:12]} Nf6 {[%emt 0:00:54]} 7. Nc3 {[%emt 0:00:45]} d6 {[%emt 0:00:28]} 8. Be2 {[%emt 0:01:10]} O-O {[%emt 0:00:28]} 9. O-O {[%emt 0:01:37]} a6 {[%emt 0:03:45]} 10. b3 {[%emt 0:03:40] B38: Sicilian: Maroczy Bind with 5...Bg7 and 7...0-0.} Bd7 {[%emt 0:01:55]} 11. f3 {[%emt 0:02:11]} Rb8 {[%emt 0:03:49] [#]} 12. Rb1 $146 {[%emt 0:01:58] White is slightly better.} ({Predecessor:} 12. Rc1 Nxd4 13. Bxd4 Qa5 14. a4 Bc6 15. Qe1 Rfe8 16. Qf2 Nd7 17. Bxg7 Kxg7 18. Qd4+ Kg8 19. Rf2 Nc5 20. Rb1 Ne6 21. Qe3 {½-½ (21) Szirmai,E (2240)-Kalousek,V (2125) Pardubice 1996}) 12... Nxd4 {[%emt 0:02:33]} 13. Bxd4 {[%emt 0:00:15]} b5 {[%emt 0:01:24]} 14. Be3 {[%emt 0:03:35]} Bc6 {[%emt 0:26:08][%cal Of6g4]} 15. Qd2 {[%emt 0:06:55]} Nd7 {[%emt 0:04:44]} (15... b4 $11 16. Nd5 a5) 16. Rfc1 {[%emt 0:07:40]} ({White should try} 16. b4 $14) 16... b4 $11 {[%emt 0:12:01]} 17. Nd5 {[%emt 0:02:33]} a5 {[%emt 0:02:39]} 18. h4 {[%emt 0:15:39][%cal Oh4h5]} h5 {[%emt 0:14:11]} (18... e6 {with more complications.} 19. Nf4 Qxh4 20. Qxd6 Rbc8) 19. Bg5 {[%emt 0:08:42]} Bxd5 {[%emt 0:01:07]} 20. cxd5 {[%emt 0:03:34]} Nc5 {[%emt 0:00:19]} 21. Bh6 {[%emt 0:05:36]} Qb6 {[%emt 0:05:48]} 22. Kh1 {[%emt 0:05:01]} Rfc8 {[%emt 0:02:36]} 23. Bxg7 {[%emt 0:02:45]} Kxg7 {[%emt 0:00:01]} 24. Qd4+ {[%emt 0:00:58]} Kh7 {[%emt 0:01:55]} 25. f4 {[%emt 0:08:16]} Qd8 {[%emt 0:04:20][%cal Oe7e5]} 26. g4 {[%emt 0:03:25] [#]} (26. g3 $11 {remains equal.}) 26... e5 {[%emt 0:01:44]} (26... hxg4 $1 $17 {[%cal Oe7e5] Strongly threatening ...e5!} 27. e5 (27. Bxg4 $2 e5 $17) 27... dxe5 28. fxe5 {[#]} e6 $1) 27. Qf2 $2 {[%emt 0:03:06][%mdl 8192] White does not recover from this.} (27. fxe5 $11 {and White has nothing to worry.} Qxh4+ 28. Kg2) 27... Nxe4 $19 {[%emt 0:00:24]} 28. Qe1 {[%emt 0:05:20]} (28. Qh2 $142 Qb6 29. Qg1 Qxg1+ 30. Kxg1) 28... exf4 {[%emt 0:01:43] White must now prevent ...Ng3+.} 29. g5 {[%emt 0:03:05]} Qd7 {[%emt 0:01:45] aiming for ...Qh3+.} 30. Kg2 {[%emt 0:02:11] Against Qh3+} Nc3 {[%emt 0:01:06]} 31. Rc2 {[%emt 0:02:40]} Nxb1 {[%emt 0:02:25]} 32. Rxc8 {[%emt 0:00:33]} Rxc8 {[%emt 0:00:12]} 33. Qxb1 {[%emt 0:00:11][%mdl 4096] Endgame KQR-KQB} Rc3 {[%emt 0:00:43] ( -> ...Rg3+)} 34. Kf2 {[%emt 0:01:46]} Qh3 {[%emt 0:00:31] Black mates.} 35. Bf1 {[%emt 0:00:59]} Qe3+ {[%emt 0:00:48]} 36. Kg2 {[%emt 0:00:21]} Qd2+ {[%emt 0:01:35]} 37. Kh1 {[%emt 0:00:52]} Rc2 {[%emt 0:00:06]} 38. Qxc2 {[%emt 0:00:32]} Qxc2 {[%emt 0:00:04] Weighted Error Value: White=1.15/Black=0.32} 0-1

[Event "44th Chess Olympiad Women 2022"]
[Site "Chennai"]
[Date "2022.07.30"]
[Round "2.56"]
[White "Clarke, Adani"]
[Black "Elshalom Essayas Berhane"]
[Result "1-0"]
[ECO "E73"]
[WhiteElo "1812"]
[BlackElo "1481"]
[Annotator "NA COMBH"]
[PlyCount "107"]
[EventDate "2022.07.29"]
[EventType "team-tourn"]
[EventCountry "IND"]
[SourceTitle "playchess.com"]
[Source "ChessBase"]
[SourceQuality "1"]
[WhiteTeam "Jamaica"]
[BlackTeam "Eritrea"]
[WhiteTeamCountry "JAM"]
[BlackTeamCountry "ERI"]
[TimeControl "40/5400+30:1800+30"]

1. d4 {[%emt 0:00:03]} Nf6 {[%emt 0:00:05]} 2. c4 {[%emt 0:00:07]} g6 {[%emt 0:00:11]} 3. Nc3 {[%emt 0:00:07]} Bg7 {[%emt 0:00:13]} 4. e4 {[%emt 0:00:06]} d6 {[%emt 0:00:07]} 5. Be2 {[%emt 0:00:11]} Nc6 {[%emt 0:01:05]} 6. Be3 {[%emt 0:00:23]} e5 {[%emt 0:00:15]} 7. d5 {[%emt 0:00:13]} Ne7 {[%emt 0:00:14]} 8. g4 {[%emt 0:01:38]} O-O {[%emt 0:03:17]} 9. g5 {[%emt 0:00:12]} Ne8 {[%emt 0:02:17]} 10. h4 {[%emt 0:00:50]} f6 {[%emt 0:05:14]} 11. gxf6 {[%emt 0:00:22]} Nxf6 {[%emt 0:01:01]} 12. h5 {[%emt 0:01:31]} Qe8 {[%emt 0:03:41]} 13. hxg6 {[%emt 0:03:40]} Qxg6 {[%emt 0:00:32]} 14. Nf3 {[%emt 0:04:02]} Nxe4 {[%emt 0:11:06]} 15. Nh4 {[%emt 0:01:25]} Nxc3 {[%emt 0:03:15]} 16. Nxg6 {[%emt 0:02:37]} Nxd1 {[%emt 0:00:11]} 17. Nxe7+ {[%emt 0:00:32]} Kf7 {[%emt 0:00:27]} 18. Rxd1 {[%emt 0:02:16]} Kxe7 {[%emt 0:00:27]} 19. Rxh7 {[%emt 0:00:13]} Rg8 {[%emt 0:02:01]} 20. Bg5+ {[%emt 0:04:50]} Kf8 {[%emt 0:00:36]} 21. Rd3 {[%emt 0:04:39]} e4 {[%emt 0:01:03]} 22. Rg3 {[%emt 0:00:22]} Bf5 {[%emt 0:03:12]} 23. Be7+ {[%emt 0:02:19]} Kxe7 {[%emt 0:06:09]} 24. Rhxg7+ {[%emt 0:00:17]} Rxg7 {[%emt 0:00:57]} 25. Rxg7+ {[%emt 0:00:07]} Kf6 {[%emt 0:01:20]} 26. Rxc7 {[%emt 0:00:14]} b6 {[%emt 0:00:50]} 27. Kd2 {[%emt 0:02:04]} Ke5 {[%emt 0:03:42]} 28. Ke3 {[%emt 0:06:19]} Bc8 {[%emt 0:02:20]} 29. Re7+ {[%emt 0:01:49]} Kf6 {[%emt 0:00:34]} 30. Rxe4 {[%emt 0:00:47]} Bf5 {[%emt 0:00:40]} 31. Rh4 {[%emt 0:01:44]} Re8+ {[%emt 0:01:24]} 32. Kd2 {[%emt 0:00:16]} Re4 {[%emt 0:06:46]} 33. Rxe4 {[%emt 0:11:06]} Bxe4 {[%emt 0:00:12]} 34. Kc3 {[%emt 0:01:42]} a5 {[%emt 0:03:20]} 35. Bd1 {[%emt 0:05:29]} Bg6 {[%emt 0:03:45]} 36. Ba4 {[%emt 0:00:51]} Bf5 {[%emt 0:02:01]} 37. Bc6 {[%emt 0:01:10]} Bc8 {[%emt 0:00:46]} 38. b4 {[%emt 0:03:23]} axb4+ {[%emt 0:00:38]} 39. Kxb4 {[%emt 0:00:06]} Ba6 {[%emt 0:00:22]} 40. Bb5 {[%emt 0:00:11]} Bb7 {[%emt 0:00:19]} 41. a4 {[%emt 0:30:52]} Ke5 {[%emt 0:32:10]} 42. a5 {[%emt 0:00:27]} bxa5+ {[%emt 0:01:23]} 43. Kxa5 {[%emt 0:00:11]} Bxd5 {[%emt 0:02:11]} 44. cxd5 {[%emt 0:00:12]} Kxd5 {[%emt 0:00:16]} 45. Kb4 {[%emt 0:01:34]} Ke4 {[%emt 0:00:30]} 46. Be2 {[%emt 0:00:14]} d5 {[%emt 0:02:38]} 47. Kc3 {[%emt 0:00:16]} d4+ {[%emt 0:00:46]} 48. Kd2 {[%emt 0:00:12]} Kf4 {[%emt 0:02:13]} 49. Kd3 {[%emt 0:00:40]} Ke5 {[%emt 0:00:43]} 50. Bf3 {[%emt 0:00:08]} Kf4 {[%emt 0:00:44]} 51. Bg2 {[%emt 0:00:15]} Ke5 {[%emt 0:03:04]} 52. Be4 {[%emt 0:00:18]} Kf4 {[%emt 0:00:51]} 53. Kxd4 {[%emt 0:00:12]} Kg4 {[%emt 0:00:24]} 54. Ke5 {[%emt 0:00:13]} 1-0

[Event "44th Chess Olympiad Women 2022"]
[Site "Chennai"]
[Date "2022.07.30"]
[Round "2.57"]
[White "De Souza, Ivana Claudia Eyram"]
[Black "Ranasinghe, S D"]
[Result "0-1"]
[ECO "B27"]
[WhiteElo "1167"]
[BlackElo "1687"]
[Annotator "NA RC COMBH"]
[PlyCount "66"]
[EventDate "2022.07.29"]
[EventType "team-tourn"]
[EventCountry "IND"]
[SourceTitle "playchess.com"]
[Source "ChessBase"]
[SourceQuality "1"]
[WhiteTeam "Togo"]
[BlackTeam "Sri Lanka"]
[WhiteTeamCountry "TOG"]
[BlackTeamCountry "SRI"]
[TimeControl "40/5400+30:1800+30"]

1. e4 {[%emt 0:00:02]} g6 {[%emt 0:00:16]} 2. Nf3 {[%emt 0:01:19]} Bg7 {[%emt 0:00:08]} 3. d4 {[%emt 0:02:23]} c5 {[%emt 0:00:11]} 4. c3 {[%emt 0:05:44]} b6 {[%emt 0:00:09]} 5. Be2 {[%emt 0:04:37]} Bb7 {[%emt 0:00:10]} 6. d5 {[%emt 0:03:14]} Nf6 {[%emt 0:00:45]} 7. Nbd2 {[%emt 0:01:58]} O-O {[%emt 0:00:08]} 8. Rb1 {[%emt 0:06:28]} d6 {[%emt 0:03:37]} 9. c4 {[%emt 0:00:48]} e5 {[%emt 0:00:52]} 10. O-O {[%emt 0:00:58]} Bc8 {[%emt 0:00:27]} 11. Re1 {[%emt 0:04:01]} Nh5 {[%emt 0:00:33]} 12. Nf1 {[%emt 0:02:46]} Nf4 {[%emt 0:01:08]} 13. Bd3 {[%emt 0:07:39]} Nxd3 {[%emt 0:00:31]} 14. Qxd3 {[%emt 0:00:11]} f5 {[%emt 0:00:08]} 15. Bg5 {[%emt 0:05:46]} Qe8 {[%emt 0:00:52]} 16. N3d2 {[%emt 0:11:00]} h6 {[%emt 0:01:11]} 17. Bxh6 {[%emt 0:06:41]} Bxh6 {[%emt 0:00:09]} 18. f3 {[%emt 0:03:56]} Nd7 {[%emt 0:01:16]} 19. Ne3 {[%emt 0:05:45]} Bxe3+ {[%emt 0:00:26]} 20. Qxe3 {[%emt 0:01:43]} f4 {[%emt 0:00:15]} 21. Qe2 {[%emt 0:01:21]} Nf6 {[%emt 0:00:07]} 22. g3 {[%emt 0:01:45]} fxg3 {[%emt 0:00:23]} 23. hxg3 {[%emt 0:00:24]} Kg7 {[%emt 0:00:06]} 24. Kg2 {[%emt 0:05:24]} Nh5 {[%emt 0:00:48]} 25. Rh1 {[%emt 0:03:38]} Qe7 {[%emt 0:00:15]} 26. Qe3 {[%emt 0:04:04]} Bd7 {[%emt 0:01:10]} 27. Kf2 {[%emt 0:01:19]} Rh8 {[%emt 0:01:55]} 28. Rbg1 {[%emt 0:02:06]} Rh7 {[%emt 0:02:17]} 29. Ke2 {[%emt 0:00:33]} Nxg3+ {[%emt 0:01:02]} 30. Rxg3 {[%emt 0:00:16]} Rxh1 {[%emt 0:00:05]} 31. Qf2 {[%emt 0:02:03]} Rah8 {[%emt 0:00:23]} 32. Kd3 {[%emt 0:01:10]} R8h2 {[%emt 0:01:23]} 33. Qe3 {[%emt 0:00:44]} Rd1 {[%emt 0:00:27]} 0-1

[Event "44th Chess Olympiad Women 2022"]
[Site "Chennai"]
[Date "2022.07.30"]
[Round "2.58"]
[White "Park, Haneul"]
[Black "Johnson, Daijah"]
[Result "1-0"]
[ECO "E90"]
[WhiteElo "1531"]
[BlackElo "1480"]
[Annotator "NA COMBH"]
[PlyCount "109"]
[EventDate "2022.07.29"]
[EventType "team-tourn"]
[EventCountry "IND"]
[SourceTitle "playchess.com"]
[Source "ChessBase"]
[SourceQuality "1"]
[WhiteTeam "Korea"]
[BlackTeam "Bahamas"]
[WhiteTeamCountry "KOR"]
[BlackTeamCountry "BAH"]
[TimeControl "40/5400+30:1800+30"]

1. d4 {[%emt 0:00:03]} Nf6 {[%emt 0:00:06]} 2. c4 {[%emt 0:00:06]} g6 {[%emt 0:00:06]} 3. Nc3 {[%emt 0:00:05]} Bg7 {[%emt 0:00:14]} 4. e4 {[%emt 0:00:20]} d6 {[%emt 0:00:33]} 5. Nf3 {[%emt 0:00:07]} Bg4 {[%emt 0:00:21]} 6. h3 {[%emt 0:01:00]} Bxf3 {[%emt 0:00:33]} 7. Qxf3 {[%emt 0:00:08]} Nbd7 {[%emt 0:00:16]} 8. Be3 {[%emt 0:14:54]} O-O {[%emt 0:02:21]} 9. Rd1 {[%emt 0:09:12]} e5 {[%emt 0:05:41]} 10. d5 {[%emt 0:01:38]} a6 {[%emt 0:04:02]} 11. Bd3 {[%emt 0:04:16]} c5 {[%emt 0:03:14]} 12. dxc6 {[%emt 0:15:03]} bxc6 {[%emt 0:01:15]} 13. Bc2 {[%emt 0:00:30]} Qc7 {[%emt 0:01:20]} 14. Bg5 {[%emt 0:01:43]} h6 {[%emt 0:07:57]} 15. Bh4 {[%emt 0:00:49]} g5 {[%emt 0:02:24]} 16. Bg3 {[%emt 0:00:10]} Nb6 {[%emt 0:02:22]} 17. c5 {[%emt 0:24:28]} dxc5 {[%emt 0:04:29]} 18. h4 {[%emt 0:04:11]} g4 {[%emt 0:02:03]} 19. Qf5 {[%emt 0:02:42]} Qc8 {[%emt 0:04:35]} 20. Qxc8 {[%emt 0:08:11]} Raxc8 {[%emt 0:00:27]} 21. Bxe5 {[%emt 0:01:02]} Nxe4 {[%emt 0:04:02]} 22. Bxg7 {[%emt 0:01:04]} Nxc3 {[%emt 0:07:33]} 23. Bxc3 {[%emt 0:00:25]} Rfe8+ {[%emt 0:00:29]} 24. Kf1 {[%emt 0:02:51]} Nd5 {[%emt 0:00:59]} 25. Bf5 {[%emt 0:01:33]} Nxc3 {[%emt 0:01:01]} 26. bxc3 {[%emt 0:01:02]} Rb8 {[%emt 0:00:25]} 27. Rb1 {[%emt 0:01:37]} Rxb1+ {[%emt 0:01:21]} 28. Bxb1 {[%emt 0:00:04]} Rd8 {[%emt 0:01:18]} 29. Ke2 {[%emt 0:00:17]} Re8+ {[%emt 0:01:06]} 30. Kd3 {[%emt 0:00:45]} Kg7 {[%emt 0:01:23]} 31. f3 {[%emt 0:01:59]} f5 {[%emt 0:01:42]} 32. fxg4 {[%emt 0:00:51]} fxg4 {[%emt 0:00:13]} 33. Kc4 {[%emt 0:00:43]} Re2 {[%emt 0:01:57]} 34. Rg1 {[%emt 0:01:18]} Re3 {[%emt 0:01:49]} 35. Bf5 {[%emt 0:00:31]} g3 {[%emt 0:00:36]} 36. Bd7 {[%emt 0:00:33]} Re4+ {[%emt 0:00:47]} 37. Kb3 {[%emt 0:00:23]} Rxh4 {[%emt 0:01:04]} 38. Bxc6 {[%emt 0:00:22]} Rf4 {[%emt 0:00:40]} 39. Bf3 {[%emt 0:00:28]} Kg6 {[%emt 0:00:31]} 40. Rh1 {[%emt 0:00:32]} a5 {[%emt 0:04:01]} 41. Rh3 {[%emt 0:30:40]} Kg5 {[%emt 0:34:37]} 42. Rxg3+ {[%emt 0:00:21]} Kh4 {[%emt 0:00:26]} 43. Rh3+ {[%emt 0:00:09]} Kg5 {[%emt 0:00:28]} 44. Rh5+ {[%emt 0:00:06]} Kg6 {[%emt 0:00:33]} 45. Rxc5 {[%emt 0:00:06]} Rf6 {[%emt 0:00:42]} 46. Rc6 {[%emt 0:00:12]} Rxc6 {[%emt 0:00:07]} 47. Bxc6 {[%emt 0:00:03]} Kf6 {[%emt 0:00:11]} 48. Ka4 {[%emt 0:00:04]} Ke5 {[%emt 0:00:20]} 49. Kxa5 {[%emt 0:00:08]} Kd6 {[%emt 0:00:14]} 50. Kb6 {[%emt 0:00:10]} Ke5 {[%emt 0:00:21]} 51. c4 {[%emt 0:00:06]} Kd6 {[%emt 0:00:26]} 52. c5+ {[%emt 0:00:04]} Ke7 {[%emt 0:00:11]} 53. Bd5 {[%emt 0:00:10]} Kd8 {[%emt 0:00:10]} 54. c6 {[%emt 0:00:06]} Kc8 {[%emt 0:00:10]} 55. c7 {[%emt 0:00:07]} 1-0